fUSD/lending_fUSD_20240223
["ID","MTS","AMOUNT","RATE_DAILY","PERIOD"]
[314920083,1708646409388,155.0,0.00025,2]
[314920084,1708646425406,155.0,0.00025,2]
[314920085,1708646452031,155.0,0.00025,2]
[314920086,1708646468023,155.0,0.00025,2]
[314920087,1708646598748,200.0,0.000248,2]
[314920088,1708646606107,800.0,0.000248,2]
[314920089,1708646618740,200.0,0.000248,2]
[314920090,1708646622145,200.0,0.000248,2]
[314920091,1708646628462,200.0,0.000248,2]
[314920104,1708646886663,1504.88397056,0.000248,2]
[314920111,1708647004736,205.0,0.00025811,2]
[314920126,1708647032222,-289.19841951,0.00026493,2]
[314920127,1708647032264,-923.00570004,0.00026493,2]
[314920128,1708647032274,-9.30815368,0.00026494,2]
[314920129,1708647032285,-259.99611821,0.00026494,2]
[314920130,1708647032296,-1885.56751892,0.00026494,2]
[314920131,1708647032305,-352.0,0.00026496,2]
[314920132,1708647032314,-522.82,0.00026498,2]
[314920133,1708647032325,-209.7881,0.00026547,2]
[314920134,1708647032334,-800.0,0.00027,3]
[314920135,1708647032343,-382.85822533,0.00027633,2]
[314920136,1708647032353,-597.558463,0.00027733,2]
[314920137,1708647032362,-382.85822522,0.00027817,2]
[314920138,1708647032372,-150.99,0.00027817,2]
[314920139,1708647032381,-19126.33597445,0.00027873,2]
[314920140,1708647032390,-382.85822522,0.00028001,2]
[314920141,1708647032400,-499.99,0.00028001,2]
[314920142,1708647032409,-250.0,0.00028062,2]
[314920143,1708647032418,-1261.93,0.00028069,2]
[314920144,1708647032427,-2000.0,0.00028137,2]
[314920145,1708647032436,-250.0,0.00028137,2]
[314920146,1708647032447,-733.76,0.0002817,2]
[314920147,1708647032456,-2291.39,0.00028182,2]
[314920148,1708647032465,-382.85822522,0.00028184,2]
[314920149,1708647032474,-205.0,0.00028253,6]
[314920150,1708647032483,-150.0,0.000283,2]
[314920151,1708647032493,-382.85822522,0.00028368,2]
[314920152,1708647032502,-266.24,0.00028459,2]
[314920153,1708647032511,-162.75,0.00028501,2]
[314920154,1708647032521,-382.85822522,0.00028552,2]
[314920155,1708647032530,-928.98246872,0.00028648,2]
[314920156,1708647032540,-233.0,0.00028708,2]
[314920157,1708647032549,-382.85822522,0.00028736,2]
[314920158,1708647032558,-522.82,0.00028762,2]
[314920159,1708647032567,-233.0,0.00028859,2]
[314920160,1708647032577,-382.85822522,0.0002892,2]
[314920161,1708647032586,-850.0,0.00029,3]
[314920162,1708647032595,-150.1,0.00029,3]
[314920163,1708647032604,-233.0,0.0002901,2]
[314920164,1708647032613,-382.85822522,0.00029103,2]
[314920165,1708647032623,-233.0,0.00029161,2]
[314920166,1708647032632,-382.85822522,0.00029287,2]
[314920167,1708647032641,-233.0,0.00029312,2]
[314920168,1708647032651,-233.0,0.00029463,2]
[314920169,1708647032660,-382.85822522,0.00029471,2]
[314920170,1708647032669,-150.0,0.00029581,2]
[314920171,1708647032680,-150.0,0.00029581,2]
[314920172,1708647032689,-150.0,0.00029581,2]
[314920173,1708647032698,-150.0,0.00029581,2]
[314920174,1708647032707,-150.0,0.00029581,2]
[314920175,1708647032717,-150.0,0.00029581,2]
[314920176,1708647032726,-150.0,0.00029581,2]
[314920177,1708647032735,-150.0,0.00029581,2]
[314920178,1708647032744,-150.0,0.00029581,2]
[314920179,1708647032753,-150.0,0.00029581,2]
[314920180,1708647032763,-150.0,0.00029581,2]
[314920181,1708647032773,-150.0,0.00029581,2]
[314920182,1708647032782,-150.0,0.00029581,2]
[314920183,1708647032791,-150.0,0.00029581,2]
[314920184,1708647032801,-150.0,0.00029581,2]
[314920185,1708647032810,-150.0,0.00029581,2]
[314920186,1708647032819,-150.0,0.00029581,2]
[314920187,1708647032828,-150.0,0.00029581,2]
[314920188,1708647032838,-150.0,0.00029581,2]
[314920189,1708647032846,-150.0,0.00029581,2]
[314920190,1708647032855,-150.0,0.00029581,2]
[314920191,1708647032865,-150.0,0.00029581,2]
[314920192,1708647032875,-150.0,0.00029581,2]
[314920193,1708647032885,-150.0,0.00029581,2]
[314920194,1708647032894,-150.0,0.00029581,2]
[314920195,1708647032903,-150.0,0.00029581,2]
[314920196,1708647032913,-150.0,0.00029581,2]
[314920197,1708647032922,-150.0,0.00029581,2]
[314920198,1708647032931,-150.0,0.00029581,2]
[314920199,1708647032941,-150.0,0.00029581,2]
[314920200,1708647032950,-150.0,0.00029581,2]
[314920201,1708647032960,-264.48752,0.00029581,2]
[314920202,1708647032968,-233.0,0.00029614,2]
[314920203,1708647032978,-382.85822522,0.00029655,2]
[314920204,1708647032987,-2830.95216,0.000297,2]
[314920205,1708647032996,-8036.4816,0.000297,2]
[314920206,1708647033005,-1261.93,0.00029712,2]
[314920207,1708647033014,-166.26,0.00029728,2]
[314920208,1708647033023,-444.42,0.00029762,2]
[314920209,1708647033032,-233.0,0.00029765,2]
[314920210,1708647033041,-27208.76217816,0.00029772,7]
[314920211,1708647037586,-2301.47842678,0.00029772,7]
[314920212,1708647037597,-1995.68914122,0.00029772,7]
[314920213,1708647037753,-588.3521942,0.00029772,7]
[314920214,1708647037765,-749.54311787,0.00029772,7]
[314920215,1708647037777,-741.27723955,0.00029772,7]
[314920216,1708647037788,-420.8888349,0.00029772,7]
[314920217,1708647037799,-313.89851893,0.00029772,7]
[314920239,1708647042708,-0.00942983,0.000297,2]
[314920240,1708647042728,-469.293,0.000297,2]
[314920241,1708647042796,-4103.97831032,0.000297,2]
[314920419,1708647048046,-509.2532,0.000297,2]
[314920420,1708647048184,-242.55065985,0.000297,2]
[314920421,1708647048196,-1212.20411955,0.0002977,2]
[314920422,1708647048206,-2154.87179081,0.00029771,2]
[314920423,1708647048217,-9713.71540505,0.00029772,7]
[314920424,1708647048229,-1522.7823768,0.00029772,7]
[314920425,1708647048327,-26148.69933591,0.00029772,7]
[314920426,1708647048382,-7685.55500444,0.00029772,7]
[314920432,1708647364320,40000.0,0.0002644,10]
[314920436,1708647384309,20000.0,0.0002644,10]
[314920437,1708647384335,5685.8837804,0.0002644,10]
[314920440,1708647863133,470.53,0.00026088,2]
[314920441,1708648030607,200.34560989,0.00026068,2]
[314920442,1708648152293,-155.0,0.0002689,2]
[314920443,1708648152314,-1396.11952673,0.0002689,2]
[314920444,1708648172485,-216.35289583,0.0002689,2]
[314920445,1708648186209,750.0,0.00025,3]
[314920450,1708648231790,-800.0,0.00027,3]
[314920451,1708648231799,-205.0,0.00027695,2]
[314920452,1708648231808,-250.0,0.00027831,2]
[314920453,1708648231817,-916.63,0.0002785,2]
[314920454,1708648231827,-158.99,0.00027864,2]
[314920455,1708648231836,-289.97,0.00027886,2]
[314920456,1708648231845,-1000.0,0.00027908,2]
[314920457,1708648231855,-250.0,0.00027908,2]
[314920458,1708648231864,-150.0,0.00027976,2]
[314920459,1708648231873,-10672.10216674,0.00027977,2]
[314920460,1708648233194,-13227.89783326,0.00027977,2]
[314920461,1708648233205,-2000.0,0.00028004,2]
[314920462,1708648233215,-200.0,0.00028006,2]
[314920463,1708648233224,-1909.49,0.0002802,2]
[314920464,1708648233234,-150.0,0.00028047,2]
[314920465,1708648233243,-1592.79,0.00028047,2]
[314920466,1708648233253,-470.53,0.00028352,2]
[314920467,1708648233262,-153.14329024,0.00028574,2]
[314920468,1708648233273,-153.14329008,0.00028637,2]
[314920469,1708648233283,-153.14329008,0.00028701,2]
[314920470,1708648233293,-181.99,0.00028704,2]
[314920471,1708648233302,-155.0,0.00028763,2]
[314920472,1708648233312,-24353.12515234,0.00028764,6]
[314920473,1708648233326,-653.43369802,0.00028764,6]
[314920474,1708648233338,-1712.42770388,0.00028764,6]
[314920475,1708648233350,-23281.01344576,0.00028764,6]
[314920476,1708648233359,-153.14329008,0.00028764,2]
[314920477,1708648233369,-162.75,0.00028766,2]
[314920478,1708648233378,-153.14329008,0.00028828,2]
[314920479,1708648233388,-155.0,0.0002888,2]
[314920480,1708648233397,-177.69,0.0002888,2]
[314920481,1708648233407,-159.09,0.00028889,2]
[314920482,1708648233417,-499.99,0.00028889,2]
[314920483,1708648233427,-153.14329008,0.00028891,2]
[314920484,1708648233437,-153.14329008,0.00028955,2]
[314920485,1708648233446,-850.0,0.00029,3]
[314920486,1708648233455,-12420.21681052,0.00029,2]
[314920487,1708648233465,-150.19642378,0.00029008,2]
[314920488,1708648233474,-29999.99,0.00029009,2]
[314920489,1708648233484,-153.14329008,0.00029018,2]
[314920490,1708648233493,-153.14329008,0.00029082,2]
[314920492,1708648233503,-153.14329008,0.00029145,2]
[314920494,1708648233512,-399.98,0.0002917,2]
[314920496,1708648233523,-45727.63337216,0.0002918,2]
[314920501,1708648233557,-547.8267494,0.0002918,2]
[314920504,1708648233589,-564.66263687,0.0002918,2]
[314920505,1708648233601,-521.07491688,0.0002918,2]
[314920506,1708648233613,-1408.80412938,0.0002918,2]
[314920507,1708648233633,-19562.60509531,0.0002918,2]
[314920508,1708648233642,-10470.83084588,0.0002918,2]
[314920509,1708648233656,-365.35210606,0.0002918,2]
[314920510,1708648233697,-435.04752656,0.0002918,2]
[314920511,1708648233709,-1252.32475383,0.0002918,2]
[314920512,1708648233720,-517.85068696,0.0002918,2]
[314920513,1708648233733,-341.48500725,0.0002918,2]
[314920514,1708648233744,-603.01113768,0.0002918,2]
[314920515,1708648233771,-612.83195705,0.0002918,2]
[314920521,1708648238079,-84387.54477873,0.0002918,2]
[314920522,1708648238089,-153.14329008,0.00029209,2]
[314920523,1708648238098,-153.14329008,0.00029272,2]
[314920524,1708648238107,-584.1332572,0.00029279,2]
[314920525,1708648238117,-190.52,0.0002928,2]
[314920526,1708648238126,-109071.1582,0.0002928,2]
[314920527,1708648238136,-1000.0,0.0002928,2]
[314920528,1708648238145,-1516.3082,0.0002928,2]
[314920529,1708648238154,-1094.00124829,0.00029299,4]
[314920530,1708648238163,-153.14329008,0.00029336,2]
[314920531,1708648238172,-151.022307,0.00029348,2]
[314920532,1708648238181,-151.022307,0.00029348,2]
[314920533,1708648238190,-151.022307,0.00029348,2]
[314920534,1708648238200,-151.022307,0.00029348,2]
[314920535,1708648238209,-151.022307,0.00029348,2]
[314920536,1708648238219,-151.022307,0.00029348,2]
[314920537,1708648238228,-151.022307,0.00029348,2]
[314920538,1708648238238,-151.022307,0.00029348,2]
[314920539,1708648238248,-151.022307,0.00029348,2]
[314920540,1708648238258,-151.022307,0.00029348,2]
[314920541,1708648238267,-151.022307,0.00029348,2]
[314920542,1708648238277,-151.022307,0.00029348,2]
[314920543,1708648238286,-151.022307,0.00029348,2]
[314920544,1708648238296,-399.98,0.0002937,2]
[314920545,1708648238305,-100000.0,0.0002938,2]
[314920546,1708648238314,-153.14329008,0.00029399,2]
[314920547,1708648238324,-177.69,0.00029428,2]
[314920548,1708648238334,-153.14329008,0.00029463,2]
[314920549,1708648238344,-2154.87179081,0.00029477,2]
[314920550,1708648238353,-515.70641662,0.00029478,2]
[314920551,1708648238363,-112960.01541835,0.0002948,2]
[314920552,1708648238374,-2988.64141947,0.0002948,2]
[314920553,1708648238383,-916.63,0.00029494,2]
[314920554,1708648238393,-438.47494581,0.000295,3]
[314920555,1708648238402,-153.14329008,0.00029526,2]
[314920556,1708648238412,-200.0,0.00029587,2]
[314920557,1708648238422,-153.14329008,0.0002959,2]
[314920558,1708648238433,-399.98,0.0002959,2]
[314920559,1708648238442,-19293.83672178,0.000296,2]
[314920560,1708648238451,-200.0,0.00029641,2]
[314920561,1708648238462,-800.0,0.00029641,2]
[314920562,1708648238473,-200.0,0.00029641,2]
[314920563,1708648238483,-200.0,0.00029641,2]
[314920564,1708648238493,-153.14329008,0.00029653,2]
[314920565,1708648238502,-173.52084358,0.00029672,2]
[314920566,1708648238511,-1000.0,0.00029672,2]
[314920567,1708648238521,-51306.1845,0.00029672,2]
[314920568,1708648238530,-500.0,0.000297,2]
[314920569,1708648238540,-926.33418341,0.000297,2]
[314920570,1708648238551,-153.14329008,0.00029717,2]
[314920571,1708648238561,-9610.8393756,0.0002976,2]
[314920572,1708648238573,-399.98,0.00029762,2]
[314920573,1708648238585,-399.98,0.0002977,2]
[314920574,1708648238594,-1212.20411955,0.00029771,2]
[314920575,1708648238604,-430.00747052,0.00029771,2]
[314920576,1708648238614,-63811.93617706,0.00029772,7]
[314920579,1708648240279,-403.93902329,0.00029772,7]
[314920580,1708648241168,-2146.37674326,0.00029772,7]
[314920581,1708648241214,-1287.36,0.00029772,7]
[314920582,1708648242777,-273.66900006,0.00029772,7]
[314920583,1708648242993,-7342.41917904,0.00029772,7]
[314920785,1708648245999,-286.35306377,0.00029772,7]
[314920790,1708648312731,4902.09770417,0.00026,2]
[314920791,1708648312754,97.90229583,0.00026,2]
[314920792,1708648351076,1497.33812372,0.00026,2]
[314920794,1708648805714,205.0,0.00027982,5]
[314920795,1708648844827,4905.90634453,0.0002,14]
[314920796,1708649164506,205.0,0.00024695,2]
[314920797,1708649164867,205.0,0.00027217,6]
[314920798,1708649355115,-487.72,0.00025683,2]
[314920799,1708649355135,-19126.33597445,0.00025999,2]
[314920800,1708649355156,-4877.15931843,0.00026,2]
[314920801,1708649357570,155.73628474,0.000259,2]
[314920805,1708649434589,-155.73628471,0.00027193,2]
[314920806,1708649434601,-483.31,0.00027596,2]
[314920807,1708649434612,-250.0,0.00027639,2]
[314920808,1708649434622,-152.71371529,0.00027649,2]
[314920809,1708649434635,-458.36628471,0.00027649,2]
[314920810,1708649434643,-250.0,0.00027651,2]
[314920811,1708649434652,-161.32,0.00027673,2]
[314920812,1708649434662,-533.95,0.00027697,2]
[314920813,1708649434671,-533.95,0.00027857,2]
[314920814,1708649434680,-487.72,0.00027947,2]
[314920815,1708649434689,-19126.33597445,0.0002798,2]
[314920816,1708649434698,-1242.51,0.00027981,2]
[314920817,1708649434708,-499.99,0.00027981,2]
[314920818,1708649434718,-533.95,0.00028017,2]
[314920819,1708649434727,-161.32,0.00028019,2]
[314920820,1708649434737,-254.9,0.0002808,2]
[314920821,1708649434746,-2000.0,0.00028085,2]
[314920822,1708649434755,-800.0,0.00028085,2]
[314920823,1708649434765,-1591.24,0.00028125,2]
[314920824,1708649434774,-533.95,0.00028177,2]
[314920825,1708649434783,-161.16,0.00028199,2]
[314920826,1708649434792,-200.0,0.00028251,2]
[314920827,1708649434802,-533.95,0.00028337,2]
[314920828,1708649434811,-162.76,0.00028356,2]
[314920829,1708649434822,-161.32,0.00028365,2]
[314920830,1708649434831,-155.73628471,0.00028487,2]
[314920831,1708649434841,-533.95,0.00028497,2]
[314920832,1708649434851,-533.95,0.00028658,2]
[314920833,1708649434861,-161.32,0.00028711,2]
[314920834,1708649434872,-1000.0,0.00028764,7]
[314920835,1708649434881,-1000.0,0.00028764,7]
[314920836,1708649434891,-1000.0,0.00028764,7]
[314920837,1708649434902,-10496.2000663,0.00028764,5]
[314920838,1708649434912,-1000.0,0.00028764,7]
[314920839,1708649434922,-1000.0,0.00028764,7]
[314920840,1708649434931,-1000.0,0.00028764,7]
[314920842,1708649434940,-1000.0,0.00028764,7]
[314920844,1708649434949,-9498.41103409,0.00028764,5]
[314920846,1708649434960,-1000.0,0.00028764,7]
[314920848,1708649434969,-1000.0,0.00028764,7]
[314920850,1708649434978,-1000.0,0.00028764,7]
[314920852,1708649434988,-1000.0,0.00028764,7]
[314920854,1708649434998,-1000.0,0.00028764,7]
[314920856,1708649435010,-1000.0,0.00028764,7]
[314920858,1708649435019,-1000.0,0.00028764,7]
[314920860,1708649435029,-1000.0,0.00028764,7]
[314920862,1708649435038,-1000.0,0.00028764,7]
[314920864,1708649435048,-1000.0,0.00028764,7]
[314920866,1708649435057,-1000.0,0.00028764,7]
[314920868,1708649435066,-1000.0,0.00028764,7]
[314920870,1708649435076,-1000.0,0.00028764,7]
[314920872,1708649435086,-1000.0,0.00028764,7]
[314920874,1708649435097,-1000.0,0.00028764,7]
[314920876,1708649435107,-1000.0,0.00028764,7]
[314920878,1708649435116,-1000.0,0.00028764,7]
[314920880,1708649435126,-12676.24172819,0.00028764,4]
[314920882,1708649435136,-2000.0,0.000288,2]
[314920884,1708649435146,-533.95,0.00028818,2]
[314920885,1708649435156,-165.94634963,0.0002888,2]
[314920886,1708649435165,-533.95,0.00028978,2]
[314920887,1708649435175,-151.022307,0.00028998,2]
[314920888,1708649435185,-151.022307,0.00028998,2]
[314920889,1708649435195,-151.022307,0.00028998,2]
[314920890,1708649435205,-151.022307,0.00028998,2]
[314920891,1708649435214,-151.022307,0.00028998,2]
[314920892,1708649435223,-151.022307,0.00028998,2]
[314920893,1708649435233,-151.022307,0.00028998,2]
[314920894,1708649435243,-151.022307,0.00028998,2]
[314920895,1708649435252,-151.022307,0.00028998,2]
[314920896,1708649435261,-151.022307,0.00028998,2]
[314920897,1708649435271,-151.022307,0.00028998,2]
[314920898,1708649435281,-151.022307,0.00028998,2]
[314920899,1708649435290,-151.022307,0.00028998,2]
[314920900,1708649435299,-151.022307,0.00028998,2]
[314920901,1708649435309,-12420.21681052,0.00029,2]
[314920902,1708649435318,-161.32,0.00029057,2]
[314920903,1708649435326,-155.0,0.00029079,3]
[314920904,1708649435336,-88999.5975,0.0002908,2]
[314920905,1708649435347,-1699.2886,0.0002908,2]
[314920906,1708649435356,-533.95,0.00029138,2]
[314920907,1708649435365,-288.79,0.0002917,2]
[314920908,1708649435376,-1000.0,0.0002918,2]
[314920909,1708649435386,-71796.1867,0.0002918,2]
[314920910,1708649435395,-611.08,0.00029293,2]
[314920911,1708649435405,-150.0,0.00029369,2]
[314920912,1708649435415,-161.32,0.00029403,2]
[314920913,1708649435425,-25984.80643631,0.0002949,2]
[314920914,1708649435435,-76103.21896121,0.000295,2]
[314920915,1708649435462,-526.40835608,0.000295,2]
[314920916,1708649435498,-13039.22960951,0.000295,2]
[314920917,1708649435511,-1161.39171009,0.000295,2]
[314920918,1708649435522,-608.00592068,0.000295,2]
[314920920,1708649437865,-437.70943335,0.000295,2]
[314920923,1708649440209,-2012.75418,0.000295,2]
[314920939,1708649440561,-460.25886,0.000295,2]
[314920940,1708649440869,-741.5042882,0.000295,2]
[314920941,1708649440884,-273.63518753,0.000295,2]
[314920958,1708649442937,-553.215,0.000295,2]
[314920959,1708649443055,-3438.45985778,0.000295,2]
[314920960,1708649443068,-3015.30947624,0.000295,2]
[314920961,1708649443080,-41167.40068517,0.000295,2]
[314920962,1708649443089,-1794.65046628,0.00029502,2]
[314920963,1708649443099,-1086.85177581,0.00029511,2]
[314920964,1708649443109,-13490.37591202,0.00029515,2]
[314920965,1708649443174,-11022.37024497,0.00029515,2]
[314920968,1708649446142,-606.56060382,0.00029515,2]
[314920969,1708649446265,-6221.28139129,0.00029515,2]
[314920972,1708649941191,791143.82289964,0.00028,4]
[314920973,1708649991839,750.0,0.00025,3]
[314920976,1708650273057,1063315.78545389,0.00025,2]
[314920977,1708650289039,737331.0947214,0.00025,2]
[314920978,1708650332117,-3792.47657339,0.00025,2]
[314920979,1708650433095,-1567.09402889,0.00025,2]
[314920980,1708650553448,-3289.8537,0.00025,2]
[314920981,1708650556075,-6813.4941,0.00025,2]
[314920982,1708650572102,-15700.32773846,0.00025,2]
[314920983,1708650574303,-100026.5,0.00025,2]
[314920998,1708650638235,-846.97995316,0.00025,2]
[314920999,1708650638458,-53517.86386823,0.00025,2]
[314921007,1708650641606,-1643.92117695,0.00025,2]
[314921014,1708650641827,-1064.03713167,0.00025,2]
[314921050,1708650643181,-508.475,0.00025,2]
[314921051,1708650643192,-1808.68068093,0.00025,2]
[314921052,1708650643238,-1865.45711709,0.00025,2]
[314921055,1708650646281,-3151.61,0.00025,2]
[314921104,1708651052424,174.71,0.0002226,2]
[314921105,1708651324685,205.0,0.00023738,2]
[314921128,1708651832309,-155.0,0.00024672,2]
[314921130,1708651832319,-380.19979695,0.00024673,2]
[314921135,1708651832343,-878.2454497,0.00024673,2]
[314921137,1708651832353,-1393.62200637,0.00024681,2]
[314921138,1708651832364,-351.10664586,0.00024681,2]
[314921140,1708651832375,-586.27134777,0.00024681,2]
[314921142,1708651832384,-150.0,0.00024784,2]
[314921143,1708651832394,-162.03117246,0.00024898,2]
[314921144,1708651832403,-213.35823846,0.00024997,2]
[314921145,1708651832412,-263.82793911,0.00024998,2]
[314921146,1708651832421,-72.24750785,0.00024998,2]
[314921147,1708651832541,-78.77480215,0.00024998,2]
[314921148,1708651832550,-151.02231,0.00024998,2]
[314921149,1708651832559,-151.02231,0.00024998,2]
[314921150,1708651832570,-120.79619205,0.00024998,2]
[314921151,1708651832582,-34.20380795,0.00024998,2]
[314921152,1708651832592,-824.23239135,0.00025,2]
[314921153,1708651832603,-300.66134934,0.00025,2]
[314921154,1708651832658,-502.50433536,0.00025,2]
[314921213,1708651838339,-360.96017206,0.00025,2]
[314921214,1708651838518,-311.184893,0.00025,2]
[314921215,1708651838579,-10627.36619087,0.00025,2]
[314921220,1708651843412,-132.43681991,0.00025,2]
[314921286,1708651844269,-58.83494459,0.00025,2]
[314921288,1708651844279,-1947.29905579,0.00025,2]
[314921291,1708651844291,-773.37172,0.00025,2]
[314921341,1708651846494,-4273.563245,0.00025,2]
[314921342,1708651846662,-672.44009638,0.00024999,2]
[314921343,1708651846673,-10637.38562537,0.00024999,2]
[314921344,1708651846685,-38998.6274532,0.00024999,2]
[314921345,1708651846697,-427.6918672,0.00024999,2]
[314921346,1708651846708,-85026.21122526,0.00025,2]
[314921347,1708651948514,1260.37202602,0.00024214,2]
[314921349,1708652113447,1260.37202602,0.00024442,2]
[314921351,1708652302732,1195.55,0.0002702,7]
[314921352,1708652347700,562.32,0.00024404,2]
[314921353,1708652404714,208.0,0.00023528,2]
[314921354,1708652489570,1260.37202603,0.00024466,2]
[314921355,1708652536133,1242.97925502,0.000245,2]
[314921356,1708652634934,177.74,0.00023998,2]
[314921357,1708652671905,4053.0,0.000245,2]
[314921358,1708652726568,10000.0,0.000245,2]
[314921359,1708652746452,10000.0,0.000238,2]
[314921360,1708652815226,534.2,0.00022781,2]
[314921361,1708652820768,268.4,0.000245,2]
[314921362,1708652841346,402.59,0.000245,2]
[314921364,1708652967100,-183.14728094,0.00024546,2]
[314921365,1708652967120,-1612.95094073,0.00024546,2]
[314921366,1708652967141,-155.0,0.00024553,2]
[314921367,1708652967160,-250.0,0.00024625,2]
[314921368,1708652967180,-694.42,0.00024643,2]
[314921369,1708652967199,-150.0,0.00024755,2]
[314921370,1708652967217,-245.22167833,0.00024757,2]
[314921375,1708653030335,2000.0,0.00024,2]
[314921379,1708653031527,-181.99,0.00024764,2]
[314921381,1708653031537,-346.31798343,0.00024799,2]
[314921384,1708653031586,-4199.89718794,0.00024799,2]
[314921385,1708653031599,-14584.38295406,0.00024799,2]
[314921386,1708653031608,-10000.0,0.000248,2]
[314921387,1708653031618,-158.31,0.00024809,2]
[314921388,1708653031627,-1137.76118686,0.00024847,2]
[314921389,1708653031636,-3420.64368399,0.0002485,2]
[314921390,1708653031659,-20479.35631601,0.0002485,2]
[314921391,1708653031669,-167.85963099,0.00024898,2]
[314921392,1708653031678,-250.0,0.00024942,2]
[314921393,1708653031687,-150.02231,0.00024998,2]
[314921394,1708653031696,-150.02231,0.00024998,2]
[314921395,1708653031705,-151.02231,0.00024998,2]
[314921396,1708653031715,-151.02231,0.00024998,2]
[314921397,1708653031724,-151.02231,0.00024998,2]
[314921398,1708653031733,-151.02231,0.00024998,2]
[314921399,1708653031743,-151.02231,0.00024998,2]
[314921400,1708653031753,-155.0,0.00024999,2]
[314921401,1708653031763,-750.0,0.00025,3]
[314921402,1708653031772,-3274.59734103,0.00025,2]
[314921403,1708653031783,-2000.0,0.00025,2]
[314921404,1708653031793,-200.0,0.00025,2]
[314921405,1708653031803,-499.99,0.00025,2]
[314921406,1708653031814,-534.2,0.00025045,2]
[314921407,1708653031823,-430.0,0.0002507,2]
[314921408,1708653031832,-2000.0,0.0002525,2]
[314921409,1708653031842,-200.0,0.0002525,2]
[314921410,1708653031852,-1282.81116147,0.00025307,2]
[314921411,1708653031861,-1137.76118687,0.00025348,2]
[314921412,1708653031871,-178.55,0.00025428,2]
[314921413,1708653031880,-2000.0,0.00025503,2]
[314921414,1708653031889,-200.0,0.00025503,2]
[314921415,1708653031899,-208.0,0.00025567,2]
[314921416,1708653031908,-200.0,0.00025758,2]
[314921417,1708653031918,-325.05367678,0.00026002,2]
[314921418,1708653031927,-219.34648327,0.00026002,2]
[314921419,1708653031937,-1455.0414337,0.00026002,2]
[314921420,1708653031947,-200.0,0.00026015,2]
[314921421,1708653031956,-279.72305704,0.00026088,2]
[314921422,1708653031966,-217717.55354285,0.00026098,2]
[314921423,1708653031990,-911.68,0.00026098,2]
[314921424,1708653032049,-299717.17341587,0.00026098,2]
[314921426,1708653032069,-550.3716276,0.00026098,2]
[314921429,1708653032080,-518.63122438,0.00026098,2]
[314921443,1708653034366,2000.0,0.00024,2]
[314921444,1708653037513,-151.02231,0.00026014,2]
[314921445,1708653037522,-3205.761455,0.00026098,2]
[314921446,1708653037691,-151.02231,0.00026014,2]
[314921447,1708653037701,-3807.53379702,0.00026098,2]
[314921454,1708653040107,-151.02231,0.00026014,2]
[314921455,1708653040117,-151.02231,0.00026014,2]
[314921456,1708653040128,-102.07406918,0.00026098,2]
[314921457,1708653040781,-5152.8,0.00026098,2]
[314921458,1708653040793,-1504.6372376,0.00026098,2]
[314921459,1708653041041,-1112.8058505,0.00026098,2]
[314921460,1708653041053,-452.63,0.00026098,2]
[314921544,1708653044650,-1026.61301107,0.00026098,2]
[314921546,1708653044712,-2544.28436336,0.00026098,2]
[314921547,1708653044774,-2661.86289347,0.00026098,2]
[314921564,1708653045525,-1008.44710896,0.00026098,2]
[314921565,1708653045594,-583.15809459,0.00026098,2]
[314921589,1708653994130,-213.42536004,0.00025626,2]
[314921590,1708653994150,-58.79581687,0.00025627,2]
[314921601,1708654204363,480.78,0.00023572,2]
[314921611,1708654231880,-208.0,0.00024697,2]